Workbook

Sheet ADA CAA DPAC SEP 2020
A1: DEPARTMENT OF TRANSPORTATION - CALTRANS
A2: DBE Commitment at Award (CAA) on Federally Funded Major Construction Contracts - October 1, 2019 - September 30, 2020
A4: Total Award Amount | C4: Total DBE Commitment Amount | F4: Total Prime Contracts Awarded
A5: 276604139 | C5: =SUM(B7:B19) -> 69029700.26 | F5: =SUM(B161:B172,H161:H172,E161:E172) -> 54
A6: Groups | B6: Commitment Dollars | C6: Firms | D6: Contracts | E6: % of Contracts | F6: % of DBE $ | G6: % of Total $
A7: Hispanic American Male | B7: =SUMIF(C28:C54,"m", B28:B54) -> 14978033.53 | C7: =COUNTIF(C28:C54,"M") -> 20 | D7: =SUMIF(C28:C54,"M",D28:D54) -> 55 | E7: =D7/D20 -> 0.2606635071 | F7: =B7/C5 -> 0.2169795533 | G7: =B7/A5 -> 0.05414970862
A8: Hispanic American Female | B8: =SUMIF(C28:C54,"F", B28:B54) -> 1118940.4 | C8: =COUNTIF(C28:C54,"F") -> 6 | D8: =SUMIF(C28:C54,"F",D28:D54) -> 10 | E8: =D8/D20 -> 0.04739336493 | F8: =B8/C5 -> 0.01620955032 | G8: =B8/A5 -> 0.004045277139
A9: African American Male | B9: =SUMIF(C61:C64,"m", B61:B64) -> 645600 | C9: =COUNTIF(C62:C64,"M") -> 2 | D9: =SUMIF(C62:C64,"M",D62:D64) -> 2 | E9: =D9/D20 -> 0.009478672986 | F9: =B9/C5 -> 0.009352496064 | G9: =B9/A5 -> 0.002334021473
A10: African American Female | B10: =SUMIF(C61:C64,"F", B61:B64) -> 0 | C10: =COUNTIF(C62:C64,"F") -> 0 | D10: =SUMIF(C62:C64,"F",D62:D64) -> 0 | E10: =D10/D20 -> 0 | F10: =B10/C5 -> 0 | G10: =B10/A5 -> 0
A11: Asian Pacific Male | B11: =SUMIF(C80:C106,"m", B80:B106) -> 27625307.7 | C11: =COUNTIF(C80:C106,"M") -> 21 | D11: =SUMIF(C80:C106,"M",D80:D106) -> 39 | E11: =D11/D20 -> 0.1848341232 | F11: =B11/C5 -> 0.4001945191 | G11: =B11/A5 -> 0.09987308144
A12: Asian Pacific Female | B12: =SUMIF(C80:C106,"F", B80:B106) -> 780742.3 | C12: =COUNTIF(C80:C106,"F") -> 5 | D12: =SUMIF(C80:C106,"F",D80:D106) -> 6 | E12: =D12/D20 -> 0.02843601896 | F12: =B12/C5 -> 0.01131023743 | G12: =B12/A5 -> 0.002822598038
A13: Subcontinent Asian Male | B13: =SUMIF(C67:C77,"m", B67:B77) -> 8198882.68 | C13: =COUNTIF(C67:C77,"M") -> 9 | D13: =SUMIF(C67:C77,"M",D67:D77) -> 16 | E13: =D13/D20 -> 0.07582938389 | F13: =B13/C5 -> 0.1187732621 | G13: =B13/A5 -> 0.02964121473
A14: Subcontinent Asian Female | B14: =SUMIF(C67:C77,"F", B67:B77) -> 417500 | C14: =COUNTIF(C67:C77,"F") -> 1 | D14: =SUMIF(C67:C77,"F",D67:D77) -> 3 | E14: =D14/D20 -> 0.01421800948 | F14: =B14/C5 -> 0.006048121293 | G14: =B14/A5 -> 0.001509377269
A15: Native American Male | B15: =SUMIF(C57:C58,"m", B57:B58) -> 0 | C15: =COUNTIF(C57:C58,"M") -> 0 | D15: =SUMIF(C57:C58,"M",D57:D58) -> 0 | E15: =D15/D20 -> 0 | F15: =B15/C5 -> 0 | G15: =B15/A5 -> 0
A16: Native American Female | B16: =SUMIF(C57:C58,"F", B57:B58) -> 0 | C16: =COUNTIF(C57:C58,"F") -> 0 | D16: =SUMIF(C57:C58,"F",D57:D58) -> 0 | E16: =D16/D20 -> 0 | F16: =B16/C5 -> 0 | G16: =B16/A5 -> 0
A17: Non Minority Women | B17: =SUMIF(C114:C155,"F", B114:B155) -> 15014693.65 | C17: =COUNTIF(C114:C155,"F") -> 41 | D17: =SUMIF(C114:C155,"F",D114:D155) -> 80 | E17: =D17/D20 -> 0.3791469194 | F17: =B17/C5 -> 0.2175106308 | G17: =B17/A5 -> 0.05428224503
A18: Non Minority Men | B18: =SUMIF(C110:C111,"M", B110:B111) -> 250000 | C18: =COUNTIF(C110:C111,"F") -> 0 | D18: =SUMIF(C110:C111,"F",D110:D111) -> 0 | E18: =D18/D20 -> 0 | F18: =B18/C5 -> 0.003621629517 | G18: =B18/A5 -> 0.0009038187241
A20: Total | C20: =SUM(C7:C19) -> 105 | D20: =SUM(D7:D19) -> 211
A21: Total Prime Contracts Awarded | B21: =SUM(B161:B172,E161:E172,H161:H172) -> 54
A22: Red Italic = DBE firm as Prime
A23: BOLD = women
A27: Hispanic American | B27: Dollars | C27: M/F | D27: Contract | E27: Contract # | F27: Prime | G27: Prime Name | H27: Districts
A28: ACT CONSULTING ENGINEERS | B28: ='[1]Commitment-DPAC-Minor B Alpha'!G14 -> 1323365 | C28: M | D28: 3 | E28: =fetchcomment(D28) -> 08A3114 08A3164 07A4765 | F28: 3 | G28: =fetchcomment(F28) -> ICF JONES & STOKES EXP U.S. SERVICES INC TRANSYSTEMS CORPORATION | H28: 7,8
A29: ADVANCED TECHNOLOGY | B29: ='[1]Commitment-DPAC-Minor B Alpha'!G25 -> 580180 | C29: M | D29: 6 | E29: =fetchcomment(D29) -> 09A0769 04A5953 12A1843 07A4958 07A4968 08A3186 | F29: 3 | G29: =fetchcomment(F29) -> GEOCON CONSULTANTS STANTEC CONSULTING SERVICES INC GEOSYNTEC CONSULTANTS INC | H29: 4,7,8,9,12
A30: ARELLANO ASSOCIATES LLC | B30: ='[1]Commitment-DPAC-Minor B Alpha'!C13 -> 337450 | C30: F | D30: 2 | E30: 07A4811 08A3114 | F30: 2 | G30: GPA CONSULTING ICF JONES & STOKES | H30: 7,8
A31: BAINBRIDGE ENVIRONMENTAL | B31: ='[1]Commitment-DPAC-Minor B Alpha'!G30 -> 10695 | C31: M | D31: 1 | E31: 08A3186 | F31: 1 | G31: STANTEC CONSULTING | H31: 8
A32: CABRINHA HEARN & ASSOCIATES | B32: ='[1]Commitment-DPAC-Minor B Alpha'!G41 -> 320590 | C32: M | D32: 4 | E32: 07A4918 12A1843 08A3201 08A3186 | F32: 2 | G32: STANTEC PSOMAS | H32: 7,8,12
A33: CADRE DESIGN GROUP | B33: ='[1]Commitment-DPAC-Minor B Alpha'!G46 -> 85128.84 | C33: M | D33: 1 | E33: 03A3085 | F33: 1 | G33: MARK THOMAS & COMPANY | H33: 3
A34: COAST SURVEYING INC | B34: ='[1]Commitment-DPAC-Minor B Alpha'!G50 -> 843800 | C34: M | D34: 1 | E34: 12A1816 | F34: 1 | G34: PSOMAS | H34: 12
A35: DIAZ CONSULTANTS | B35: ='[1]Commitment-DPAC-Minor B Alpha'!G61 -> 93000 | C35: M | D35: 2 | E35: 07A4758 12A1843 | F35: 2 | G35: HNTB CORPORATION STANTEC CONSULTING SERVICES | H35: 7,12
A36: DIEGO & SON PRINTING | B36: ='[1]Commitment-DPAC-Minor B Alpha'!G56 -> 16011.98 | C36: M | D36: 1 | E36: 11A3018 | F36: 1 | G36: AECOM TECHNICAL SERVICES INC | H36: 11
A37: EARTHVIEW SCIENCE | B37: ='[1]Commitment-DPAC-Minor B Alpha'!C19 -> 135000 | C37: F | D37: 3 | E37: 03A3066 03A3073 03A3072 | F37: 1 | G37: STANTEC CONSULTING | H37: 3
A38: ESTRADA LAND PLANNING | B38: ='[1]Commitment-DPAC-Minor B Alpha'!C25 -> 56490.4 | C38: F | D38: 1 | E38: 03A3087 | F38: 1 | G38: DOKKEN ENGINEERING | H38: 3
A39: FOUNTAINHEAD CONSULTING CORP | B39: ='[1]Commitment-DPAC-Minor B Alpha'!G71 -> 4744880.2 | C39: M | D39: 5 | E39: 06A2588 07A4906 11A3056 11A3099 59A1110 | F39: 4 | G39: MNS ENGINEERS INC FOUNTAINHEAD CONSULTING KLEINFELDER CONSTRUCTION PRESCINCE CORPORATION | H39: 6,7,11,59
A40: FULL TRAFFIC MAINTENANCE | B40: ='[1]Commitment-DPAC-Minor B Alpha'!G78 -> 34390 | C40: M | D40: 2 | E40: 12A1843 08A3186 | F40: 1 | G40: STANTEC CONSULTING SERVICES INC | H40: 8,12
A41: LA SALLE SOLUTIONS | B41: ='[1]Commitment-DPAC-Minor B Alpha'!G86 -> 737500 | C41: M | D41: 4 | E41: 59A1095 11A3027 11A3056 11A3099 | F41: 2 | G41: T R C ENGINEERS INC KLEINFELDER CONSTRUCTION | H41: 11,59
A42: MA ENGINEERING | B42: ='[1]Commitment-DPAC-Minor B Alpha'!G91 -> 160000 | C42: M | D42: 1 | E42: 07A4758 | F42: 1 | G42: HNTB CORPORATION | H42: 7
A43: MARTINI DRILLING CORP | B43: ='[1]Commitment-DPAC-Minor B Alpha'!G96 -> 40000 | C43: M | D43: 1 | E43: 07A4968 | F43: 1 | G43: GEOSYNTEC CONSULTANTS INC | H43: 7
A44: MONTEZ GROUP INC | B44: ='[1]Commitment-DPAC-Minor B Alpha'!G105 -> 760600 | C44: M | D44: 2 | E44: 04A5915 11A3060 | F44: 2 | G44: HDR ENGINEERS INC ARCADIS U.S. INC | H44: 4,11
A45: MTGL INC | B45: ='[1]Commitment-DPAC-Minor B Alpha'!C36 -> 450000 | C45: F | D45: 2 | E45: 04A5786 07A4764 | F45: 1 | G45: S2 ENGINEERING INC | H45: 4,7
A46: MUNDO ENVIRONMENTAL INC | B46: ='[1]Commitment-DPAC-Minor B Alpha'!G110 -> 23695 | C46: M | D46: 2 | E46: 12A1843 08A3186 | F46: 1 | G46: STANTEC CONSULTING INC | H46: 8,12
A47: R T ENGINEERING & ASSOCIATES | B47: ='[1]Commitment-DPAC-Minor B Alpha'!C48 -> 120000 | C47: F | D47: 1 | E47: 59A1095 | F47: 1 | G47: T R C ENGINEERS INC | H47: 59
A48: RUZ CONSULTING ENGINEERING | B48: ='[1]Commitment-DPAC-Minor B Alpha'!G118 -> 145412.42 | C48: M | D48: 1 | E48: 03A3008 | F48: 1 | G48: PSOMAS | H48: 3
A49: SAFE2CORE | B49: ='[1]Commitment-DPAC-Minor B Alpha'!C55 -> 20000 | C49: F | D49: 1 | E49: 04A5953 | F49: 1 | G49: GEOCON CONSULTANTS | H49: 4
A50: SOUTHSTAR ENGINEERING | B50: ='[1]Commitment-DPAC-Minor B Alpha'!G131 -> 1192130 | C50: M | D50: 5 | E50: 59A1095 07A4906 08A3164 04A5910 07A4929 | F50: 4 | G50: T R C ENGINEERS INC FOUNTAINHEAD CONSULTING EXP U.S. SERVICES INC PPM GROUP INC | H50: 4,7,8,59
A51: UNDER CONSTRUCTION | B51: ='[1]Commitment-DPAC-Minor B Alpha'!G139 -> 382492.3 | C51: M | D51: 2 | E51: 06A2597 11A3027 | F51: 1 | G51: T R C ENGINEERS INC | H51: 6,11
A52: UNICO ENGINEERING CONSULTING | B52: ='[1]Commitment-DPAC-Minor B Alpha'!G155 -> 1887522.79 | C52: M | D52: 7 | E52: 04A5823 09A0769 03A3008 03A3041 09A0788 03A3087 59A1103 | F52: 7 | G52: TRC ENGINEERS INC GEOCON CONSULTANTS PSOMAS GHIRARDELLI ASSOCIATES INC NV5 INC DOKKEN ENGINEERING HDR CONSTRUCITON CONTROL | H52: 3,4,9,59
A53: VSCE INC | B53: ='[1]Commitment-DPAC-Minor B Alpha'!G165 -> 1596640 | C53: M | D53: 4 | E53: 04A5823 04A5915 06A2596 09A0788 | F53: 3 | G53: TRC ENGINEERS INC HDR ENGINEERS INC NV5 INC | H53: 4,6,9
A56: Native American | B56: Dollars | C56: M/F | D56: Contract | E56: Contract # | F56: Prime | G56: Prime Name | H56: Districts
A60: African American | B60: Dollars | C60: M/F | D60: Contract | E60: Contract # | F60: Prime | G60: Prime Name | H60: Districts
A61: ALLUVION BIOLOGICAL CONSULTING | B61: ='[1]Commitment-DPAC-Minor B Alpha'!AE13 -> 245000 | C61: M | D61: 3 | E61: 03A3073 03A3066 03A3072 | F61: 1 | G61: STANTEC CONSULTING | H61: 3
A62: SKS ENGINEERING INC | B62: ='[1]Commitment-DPAC-Minor B Alpha'!AE25 -> 40000 | C62: M | D62: 1 | E62: 59A1095 | F62: 1 | G62: T R C ENGINEERS INC | H62: 59
A63: TRINITY ENGINEERING | B63: ='[1]Commitment-DPAC-Minor B Alpha'!AE31 -> 360600 | C63: M | D63: 1 | E63: 11A3060 | F63: 1 | G63: ARCADIS U.S. INC | H63: 11
A66: Sub Cont Asian | B66: Dollars | C66: M/F | D66: Contract | E66: Contract # | F66: Prime | G66: Prime Name | H66: Districts
A67: AMC INC | B67: ='[1]Commitment-DPAC-Minor B Alpha'!AM14 -> 2060000 | C67: M | D67: 3 | E67: 07A4783 07A4764 59A1110 | F67: 3 | G67: JACOBS PROJECT MANAGEMENT S2 ENGINEERING INC PRESCIENCE CORPORATION | H67: 7, 59
A68: CHAUDHARY AND ASSOCIATES INC | B68: ='[1]Commitment-DPAC-Minor B Alpha'!AM22 -> 4093640 | C68: M | D68: 3 | E68: 04A5915 06A2596 04A5906 | F68: 3 | G68: HDR ENGINEERS INC NV5, INC CHAUDHARY & ASSOCIATES | H68: 4,6
A69: KAL KRISHNAN CONSULTING | B69: ='[1]Commitment-DPAC-Minor B Alpha'!AM43 -> 177315 | C69: M | D69: 1 | E69: EXP E.S. SERVICES INC | F69: 1 | G69: 08A3164 | H69: 8
A70: EARTH MECHANICS | B70: ='[1]Commitment-DPAC-Minor B Alpha'!AM28 -> 160000 | C70: M | D70: 1 | E70: 07A4765 | F70: 1 | G70: TRANSYSTEMS CORPORATION | H70: 7
A71: ENVIRONMENTAL COST MANAGEMENT | B71: ='[1]Commitment-DPAC-Minor B Alpha'!AM33 -> 90170 | C71: M | D71: 2 | E71: 12A1843 08A3186 | F71: 1 | G71: STANTECT CONSULTING SERVICES INC | H71: 8, 12
A72: IQON ENGINEERS INC | B72: ='[1]Commitment-DPAC-Minor B Alpha'!AM38 -> 300000 | C72: M | D72: 1 | E72: 07A4929 | F72: 1 | G72: PPM GROUP INC | H72: 7
A73: REDDY ANTHROPOLOGY CONSULTING | B73: ='[1]Commitment-DPAC-Minor B Alpha'!AI14 -> 417500 | C73: F | D73: 3 | E73: 07A4811 11A3056 11A3099 | F73: 2 | G73: GPA CONSULTING KLEINFELDER CONSTRUCTION | H73: 7,11
A74: S2 ENGINEERING | B74: ='[1]Commitment-DPAC-Minor B Alpha'!AM60 -> 487500 | C74: M | D74: 3 | E74: 04A5910 11A3056 11A3099 | F74: 2 | G74: EXP U.S. SERVICES INC KLEINFELDER CONSTRUCTION | H74: 4,11
A75: SUBSTRATE INC | B75: ='[1]Commitment-DPAC-Minor B Alpha'!AM66 -> 660000 | C75: M | D75: 1 | E75: 59A1110 | F75: 1 | G75: PRESCIENCE CORPORATION | H75: 59
A76: T J K M | B76: ='[1]Commitment-DPAC-Minor B Alpha'!AM70 -> 170257.68 | C76: M | D76: 1 | E76: 03A3085 | F76: 1 | G76: MARK THOMAS & COMPANY | H76: 3
A79: Asian Pacific | B79: Dollars | C79: M/F | D79: Contract | E79: Contract # | F79: Prime | G79: Prime Name | H79: Districts
A80: 1ST CHOICE DBE INC | B80: ='[1]Commitment-DPAC-Minor B Alpha'!O10 -> 232000 | C80: M | D80: 2 | E80: 53A0241 53A0237 | F80: 2 | G80: STANTON CONSTRUCTABILITY SERVICES 1ST CHOICE DBE, INC | H80: 53
A81: ALIQUOT ASSOCIATES | B81: ='[1]Commitment-DPAC-Minor B Alpha'!O16 -> 500000 | C81: M | D81: 1 | E81: 04A5906 | F81: 1 | G81: CHAUDHARY & ASSOICATES | H81: 4
A82: ANALYZER INTERNATIONAL | B82: ='[1]Commitment-DPAC-Minor B Alpha'!O26 -> 350000 | C82: M | D82: 1 | E82: 59A1103 | F82: 1 | G82: HDR CONSTRUCTION CONTROL | H82: 59
A83: ASSET LABORATORIES | B83: ='[1]Commitment-DPAC-Minor B Alpha'!K10 -> 100000 | C83: F | D83: 1 | E83: 04A5953 | F83: 1 | G83: GEOCON CONSUTANTS | H83: 4
A84: AXIOM ENGINEERING | B84: ='[1]Commitment-DPAC-Minor B Alpha'!O33 -> 359000 | C84: M | D84: 1 | E84: 06A2593 | F84: 1 | G84: 06A2593 | H84: 6
A85: COASTAL ENGINEERING | B85: ='[1]Commitment-DPAC-Minor B Alpha'!O39 -> 372315 | C85: M | D85: 2 | E85: 08A3164 04A5910 | F85: 1 | G85: EXP US SERVICES INC | H85: 4,8
A86: FPL AND ASSOCIATES | B86: ='[1]Commitment-DPAC-Minor B Alpha'!O45 -> 400000 | C86: M | D86: 1 | E86: 07A4758 | F86: 1 | G86: HNTB CORPORATION | H86: 7
A87: INTERPHASE ENVIRONEMTAL INC | B87: ='[1]Commitment-DPAC-Minor B Alpha'!K19 -> 3250 | C87: F | D87: 1 | E87: 12A1843 | F87: 1 | G87: STANTEC CONSULTING SERVICE INC | H87: 12
A88: I D C CONSULTING ENGINEERS | B88: ='[1]Commitment-DPAC-Minor B Alpha'!K14 -> 270000 | C88: F | D88: 1 | E88: 11A3027 | F88: 1 | G88: T R C ENGINEERS INC | H88: 11
A89: INNOVEX ENVIRONMENTAL | B89: ='[1]Commitment-DPAC-Minor B Alpha'!O57 -> 250000 | C89: M | D89: 1 | E89: 04A5950 | F89: 1 | G89: BROWN AND CALDWELL | H89: 4
A90: GLOBALASR CONSULTING INC | B90: ='[1]Commitment-DPAC-Minor B Alpha'!O50 -> 55780 | C90: M | D90: 2 | E90: 12A1843 08A3186 | F90: 1 | G90: STANTEC CONSULTING SERVICES INC | H90: 8,12
A91: LINKALL CONSTRUCTION | B91: ='[1]Commitment-DPAC-Minor B Alpha'!O61 -> 360600 | C91: M | D91: 1 | E91: 11A3060 | F91: 1 | G91: ARCADIS U.S. INC | H91: 11
A92: LRS PROGRAM DELIVERY INC | B92: ='[1]Commitment-DPAC-Minor B Alpha'!K25 -> 382492.3 | C92: F | D92: 2 | E92: 06A2597 11A3027 | F92: 1 | G92: T R C ENGINEERS INC | H92: 6,11
A93: MGE ENGINEERING | B93: ='[1]Commitment-DPAC-Minor B Alpha'!O67 -> 895412.42 | C93: M | D93: 3 | E93: =fetchcomment(D93) -> 03A3008 04A5915 59A1103 | F93: 2 | G93: =fetchcomment(F93) -> PSOMAS HDR ENGINEERS INC | H93: 3,4,59
A94: PACRIM ENGINEERING | B94: ='[1]Commitment-DPAC-Minor B Alpha'!O71 -> 240000 | C94: M | D94: 1 | E94: 07A4758 | F94: 1 | G94: HNTB CORPORATION | H94: 7
A95: PARIKH CONSULTANTS | B95: ='[1]Commitment-DPAC-Minor B Alpha'!O88 -> 750000 | C95: M | D95: 1 | E95: 04A5786 | F95: 1 | G95: S2 ENGINEERING INC | H95: 4
A96: PARK ENGINEERING INC | B96: ='[1]Commitment-DPAC-Minor B Alpha'!O81 -> 762500 | C96: M | D96: 3 | E96: 04A5823 04A5915 59A1103 | F96: 2 | G96: TRC ENGINEERS INC HDR ENGINEERS INC | H96: 4,59
A97: PENECORE DRILLING | B97: ='[1]Commitment-DPAC-Minor B Alpha'!O96 -> 4950 | C97: M | D97: 1 | E97: 09A0769 | F97: 1 | G97: GEOCON CONSULTANTS | H97: 9
A98: PRESCIENCE CORPORATION | B98: ='[1]Commitment-DPAC-Minor B Alpha'!O108 -> 17174654.08 | C98: M | D98: 5 | E98: 03A3008 06A2588 59A1096 06A2593 59A1110 | F98: 4 | G98: PSOMAS MNS ENGINEERS INC PRESCIENCE CORPORATION ALTA VISTA | H98: 3,6,59
A99: SAFEPROBE INC | B99: ='[1]Commitment-DPAC-Minor B Alpha'!O113 -> 80000 | C99: M | D99: 1 | E99: 07A4765 | F99: 1 | G99: TRANSYSTEMS CORPORATION | H99: 7
A100: SF BOAT SUPPORT LLC | B100: ='[1]Commitment-DPAC-Minor B Alpha'!K32 -> 25000 | C100: F | D100: 1 | E100: 04A5950 | F100: 1 | G100: BROWN & CALDWELL | H100: 4
A101: SUMMIT ASSOCIATES | B101: ='[1]Commitment-DPAC-Minor B Alpha'!O125 -> 100000 | C101: M | D101: 1 | E101: 04A5823 | F101: 1 | G101: TRC ENGINEERS INC | H101: 4
A102: TATSUMI AND PARTNERS | B102: ='[1]Commitment-DPAC-Minor B Alpha'!O132 -> 320000 | C102: M | D102: 2 | E102: 07A4758 07A4765 | F102: 2 | G102: HNTB CORPORATION TRANSYSTEMS CORPORATION | H102: 7
A103: THE ALLIANCE GROUP | B103: ='[1]Commitment-DPAC-Minor B Alpha'!O138 -> 240000 | C103: M | D103: 1 | E103: 07A4758 | F103: 1 | G103: HNTB CORPORATION | H103: 7
A104: TRICERTUS LLC | B104: ='[1]Commitment-DPAC-Minor B Alpha'!O145 -> 25000 | C104: M | D104: 1 | E104: 53A0244 | F104: 1 | G104: HILL INTERNATIONAL INC | H104: 53
A105: WRECO | B105: ='[1]Commitment-DPAC-Minor B Alpha'!O158 -> 4153096.2 | C105: M | D105: 7 | E105: 04A5818 03A3066 03A3085 04A5950 03A3073 03A3087 03A3072 | F105: 5 | G105: WRECO STANTEC CONSULTING MARK THOMAS & COMPANY BROWN & CALDWELL DOKKEN ENGINEERING | H105: 3,4
A108: Other | B108: Dollars | C108: M/F | D108: Contract | E108: Contract # | F108: Prime | G108: Prime Name | H108: Districts
A110: ADH TECHNICAL SERVICES | B110: ='[1]Commitment-DPAC-Minor B Alpha'!AU8 -> 250000 | C110: M | D110: 1 | E110: 04A5950 | F110: 1 | G110: BROWN & CALDWELL | H110: 4
A113: Non Minority Women | B113: Dollars | C113: M/F | D113: Contract | E113: Contract # | F113: Prime | G113: Prime Name | H113: Districts
A114: A-TECH CONSULTING | B114: ='[1]Commitment-DPAC-Minor B Alpha'!AQ5 -> 26000 | C114: F | D114: 1 | E114: 12A1843 | F114: 1 | G114: STANTEC CONSULTING SERVICE INC | H114: 3
A115: APPL INC | B115: ='[1]Commitment-DPAC-Minor B Alpha'!AQ11 -> 80000 | C115: F | D115: 2 | E115: 07A4958 07A4968 | F115: 1 | G115: GEOSYNTEC CONSULTANTS INC | H115: 7
A116: ARCHAEO PALEO RESOURCES | B116: ='[1]Commitment-DPAC-Minor B Alpha'!AQ22 -> 45825 | C116: F | D116: 4 | E116: 09A0769 04A5953 07A4958 07A4968 | F116: 2 | G116: GEOCON CONSULTANTS GEOSYNTEC CONSULTANTS INC | H116: 4,7,9
A117: AREA WEST ENVIRONMENTAL | B117: ='[1]Commitment-DPAC-Minor B Alpha'!AQ32 -> 525000 | C117: F | D117: 3 | E117: 03A3066 03A3073 03A3072 | F117: 1 | G117: STANTEC CONSULTING | H117: 3
A118: ARGONAUT ECOLOGICAL CONSULTING | B118: ='[1]Commitment-DPAC-Minor B Alpha'!AQ38 -> 145412.42 | C118: F | D118: 1 | E118: 03A3008 | F118: 1 | G118: PSOMAS | H118: 3
A119: ARTEMIS ENVIRONMENTAL | B119: ='[1]Commitment-DPAC-Minor B Alpha'!AQ47 -> 48035.94 | C119: F | D119: 1 | E119: 11A3018 | F119: 1 | G119: AECOM TECHNICAL SERVICES INC | H119: 11
A120: AURORA INDUSTRIAL HYGIENE | B120: ='[1]Commitment-DPAC-Minor B Alpha'!AQ52 -> 90170 | C120: F | D120: 2 | E120: 12A1843 08A3186 | F120: 1 | G120: STANTEC CONSULTING SERVICES INC | H120: 8,12
A121: AZAD ENGINEERING PC | B121: ='[1]Commitment-DPAC-Minor B Alpha'!AQ60 -> 312000 | C121: F | D121: 2 | E121: 04A5823 53A0237 | F121: 2 | G121: TRC ENGINEERS INC 1ST CHOICE DBE INC | H121: 4,53
A122: BARRETT'S BIOLOGICAL SURVEYS | B122: ='[1]Commitment-DPAC-Minor B Alpha'!AQ68 -> 8005.99 | C122: F | D122: 1 | E122: 11A3018 | F122: 1 | G122: AECOM TECHNICAL SERVICES INC | H122: 11
A123: BENNETT ENGINEERING SERVICES | B123: ='[1]Commitment-DPAC-Minor B Alpha'!AQ73 -> 622967.36 | C123: F | D123: 2 | E123: 03A3085 03A3087 | F123: 2 | G123: MARK THOMAS & COMPANY DOKKEN ENGINEERING | H123: 3
A124: CECILIA'S SAFETY SERVICE | B124: ='[1]Commitment-DPAC-Minor B Alpha'!AQ78 -> 13000 | C124: F | D124: 1 | E124: 12A1843 | F124: 1 | G124: STANTEC CONSULTING INC | H124: 12
A125: CITYWORKS PEOPLE + PLACES INC | B125: ='[1]Commitment-DPAC-Minor B Alpha'!AQ90 -> 48035.94 | C125: F | D125: 1 | E125: 11A3018 | F125: 1 | G125: AECOM TECHNICAL SERVICES INC | H125: 11
A126: CIVIL WORKS ENGINEERS | B126: ='[1]Commitment-DPAC-Minor B Alpha'!AQ98 -> 355350 | C126: F | D126: 2 | E126: 08A3114 07A4758 | F126: 2 | G126: ICF JONES & STOKES HNTB CORPORATION | H126: 7,8
A127: CONNECT & COMPANY LLC | B127: ='[1]Commitment-DPAC-Minor B Alpha'!AQ104 -> 177315 | C127: F | D127: 1 | E127: 08A3164 | F127: 1 | G127: EXP U.S. SERVICES INC | H127: 8
A128: CURALIUM CONSULTING | B128: ='[1]Commitment-DPAC-Minor B Alpha'!AQ113 -> 135000 | C128: F | D128: 3 | E128: 03A3066 03A3073 03A3072 | F128: 1 | G128: STANTEC CONSULTING | H128: 3
A129: DILLARD ENVIRONMENTAL SERVICES | B129: ='[1]Commitment-DPAC-Minor B Alpha'!AQ118 -> 40000 | C129: F | D129: 2 | E129: 07A4958 07A4968 | F129: 1 | G129: GEOSYNTEC CONSULTANTS INC | H129: 7
A130: DP ENGINEERING TRANSPORTATION | B130: ='[1]Commitment-DPAC-Minor B Alpha'!AQ125 -> 85128.84 | C130: F | D130: 1 | E130: 03A3073 | F130: 1 | G130: MARK THOMAS & COMPANY | H130: 3
A131: FALCON ENGINEERING SERVICES | B131: ='[1]Commitment-DPAC-Minor B Alpha'!AQ131 -> 1019760.4 | C131: F | D131: 1 | E131: 06A2588 | F131: 1 | G131: MNS ENGINEERS INC | H131: 6
A132: FCG CONSULTANTS INC | B132: ='[1]Commitment-DPAC-Minor B Alpha'!AQ137 -> 355446.48 | C132: F | D132: 1 | E132: 03A3041 | F132: 1 | G132: GHIRARDELLI ASSOCIATES INC | H132: 3
A133: GALVIN PRESERVATION ASSOCIATES | B133: ='[1]Commitment-DPAC-Minor B Alpha'!AQ143 -> 130500 | C133: F | D133: 3 | E133: 03A3073 03A3072 08A3182 | F133: 2 | G133: STANTEC CONSULTING STATISTICAL RESEARCH INC | H133: 3, 8
A134: GATEWAY PACIFIC | B134: ='[1]Commitment-DPAC-Minor B Alpha'!AQ149 -> 520000 | C134: F | D134: 2 | E134: 11A3056 11A3099 | F134: 1 | G134: KLEINFELDER CONSTRUCTION | H134: 11
A135: GHIRARDELLI ASSOCIATES INC | B135: ='[1]Commitment-DPAC-Minor B Alpha'!AQ160 -> 4306081.01 | C135: F | D135: 7 | E135: 59A1095 06A2588 59A1096 03A3029 06A2593 06A2596 09A0788 | F135: 6 | G135: T R C ENGINEERS INC MNS ENGINEERS INC PRESCIENCE CORPORATION BLACKBURN CONSULTING ALTA VISTA NV5 INC | H135: 6,9,59
A136: GPA CONSULTING DBA GALVIN PRESERVATION ASSOCIATES | B136: ='[1]Commitment-DPAC-Minor B Alpha'!AQ168 -> 1680000 | C136: F | D136: 1 | E136: 07A4811 | F136: 1 | G136: GPA CONSULTING | H136: 7
A137: H & P MOBIL GEOCHEMISTRY | B137: ='[1]Commitment-DPAC-Minor B Alpha'!AQ179 -> 47390 | C137: F | D137: 2 | E137: 12A1843 08A3186 | F137: 1 | G137: STANTEC CONSULTING SERVICES INC | H137: 8,12
A138: HARRIS MILLER MILL & HANSON | B138: ='[1]Commitment-DPAC-Minor B Alpha'!AQ185 -> 50000 | C138: F | D138: 1 | E138: 04A5950 | F138: 1 | G138: BROWN & CALDWELL | H138: 4
A139: KIRSTIN SKADBERG | B139: ='[1]Commitment-DPAC-Minor B Alpha'!AQ192 -> 16011.98 | C139: F | D139: 1 | E139: 11A3018 | F139: 1 | G139: AECOM TECHNICAL SERVICES INC | H139: 11
A140: LYNN CAPOUYA INC | B140: ='[1]Commitment-DPAC-Minor B Alpha'!AQ196 -> 160000 | C140: F | D140: 1 | E140: 07A4758 | F140: 1 | G140: HNTB CORPORATION | H140: 7
A141: MONUMENT ROW INC | B141: ='[1]Commitment-DPAC-Minor B Alpha'!AQ200 -> 80000 | C141: F | D141: 1 | E141: 07A4758 | F141: 1 | G141: HNTB CORPORATION | H141: 7
A142: PACIFIC CREST ENGINEERING INC | B142: ='[1]Commitment-DPAC-Minor B Alpha'!AQ209 -> 254940.1 | C142: F | D142: 1 | E142: 06A2588 | F142: 1 | G142: MNS ENGINEEERS INC | H142: 6
A143: PALEO SOLUTIONS INC | B143: ='[1]Commitment-DPAC-Minor B Alpha'!AQ223 -> 172453.2 | C143: F | D143: 3 | E143: 11A3009 08A3114 08A3182 | F143: 3 | G143: SAN DIEGO NATURAL HISTORY MUSEUM ICF JONES & STOKES STATISTICAL RESEARCH INC | H143: 8,11
A144: RUBICON ENGINEERING | B144: ='[1]Commitment-DPAC-Minor B Alpha'!AQ229 -> 120000 | C144: F | D144: 2 | E144: 07A4958 07A4968 | F144: 1 | G144: GEOSYNTEC CONSULTANTS INC | H144: 7
A145: SEQUOIA ECOLOGICAL CONSULTING | B145: ='[1]Commitment-DPAC-Minor B Alpha'!AQ234 -> 50000 | C145: F | D145: 1 | E145: 03A3066 | F145: 1 | G145: STANTEC CONSULTING | H145: 3
A146: SPRING RIVERS ECOLOGICAL | B146: ='[1]Commitment-DPAC-Minor B Alpha'!AQ244 -> 185000 | C146: F | D146: 3 | E146: 03A3066 03A3073 03A3072 | F146: 1 | G146: STANTEC CONSULTING | H146: 3
A147: STATISTICAL RESEARCH INC | B147: ='[1]Commitment-DPAC-Minor B Alpha'!AQ254 -> 1966500 | C147: F | D147: 2 | E147: 07A4811 08A3182 | F147: 2 | G147: GPA CONSULTING STATISTICAL RESEARCH INC | H147: 7,8
A148: STEPHANIE REMINGTON | B148: ='[1]Commitment-DPAC-Minor B Alpha'!AQ260 -> 280008 | C148: F | D148: 1 | E148: 08A3125 | F148: 1 | G148: ECORP CONSULTING | H148: 8
A149: SWAIM BIOLOGICAL CONSULTING | B149: ='[1]Commitment-DPAC-Minor B Alpha'!AQ270 -> 260000 | C149: F | D149: 3 | E149: 03A3066 03A3073 03A3072 | F149: 1 | G149: STANTEC CONSULTING | H149: 3
A150: TRANSTERRA CONSULTING LLC | B150: ='[1]Commitment-DPAC-Minor B Alpha'!AQ276 -> 135000 | C150: F | D150: 3 | E150: 03A3066 03A3073 03A3072 | F150: 1 | G150: STANTEC CONSULTING | H150: 3
A151: TRANSTRACK SYSTEMS INC | B151: ='[1]Commitment-DPAC-Minor B Alpha'!AQ281 -> 50000 | C151: F | D151: 1 | E151: 03A3066 | F151: 1 | G151: STANTEC CONSULTING | H151: 3
A152: VRPA TECHNOLOGIES | B152: ='[1]Commitment-DPAC-Minor B Alpha'!AQ288 -> 8005.99 | C152: F | D152: 1 | E152: 11A3018 | F152: 1 | G152: AECOM TECHNICAL SERVICES INC | H152: 11
A153: WAGNER ENGINEERING & SURVEY | B153: ='[1]Commitment-DPAC-Minor B Alpha'!AQ297 -> 240000 | C153: F | D153: 4 | E153: 07A4758 07A4765 07A4958 07A4968 | F153: 3 | G153: HNTB CORPORATION TRANSYSTEMS CORPORATION GEOSYNTEC CONSULTANTS INC | H153: 7
A154: WATEARTH | B154: ='[1]Commitment-DPAC-Minor B Alpha'!AQ307 -> 170350 | C154: F | D154: 4 | E154: 08A3114 03A3066 03A3073 03A3072 | F154: 2 | G154: ICF JONES & STOKES STANTEC CONSULTING | H154: 3,8
A156: =COUNTIF(#REF!, "33") -> 
A158: =COUNTIF(#REF!, "-4142") -> 
A159: Prime Name | B159: # of Contracts | C159: Contract # | D159: Prime Name | E159: # of Contracts | F159: Contract # | G159: Prime Name | H159: # of Contracts | I159: Contract #
A161: 1ST CHOICE DBE INC | B161: 1 | C161: =fetchcomment(B161) -> 53A0237 | D161: GEOSYNTEC CONSULTANTS | E161: 2 | F161: =fetchcomment(E161) -> 07A4958 07A4968 | G161: PARSONS TRANSPORTATION | H161: 1 | I161: =fetchcomment(H161) -> 59A1096
A162: AECOM TECHNICAL SERVICES INC | B162: 1 | C162: =fetchcomment(B162) -> 11A3018 | D162: GHIRARDELLI ASSOCIATES INC | E162: 1 | F162: =fetchcomment(E162) -> 03A3041 | G162: PPM GROUP INC | H162: 1 | I162: =fetchcomment(H162) -> 07A4929
A163: ALTA VISTA | B163: 1 | C163: 06A2593 | D163: GPA CONSULTING | E163: 1 | F163: 07A4811 | G163: PRESCIENCE CORPORATION | H163: 2 | I163: 59A1096 59A1110
A164: ARCADIS U.S. INC | B164: 1 | C164: 11A3060 | D164: HDR ENGINEERS INC | E164: 2 | F164: 04A5915 59A1103 | G164: PSOMAS | H164: 3 | I164: 03A3008 12A1816 08A3201
A165: BLACKBURN CONSULTING | B165: 1 | C165: 03A3029 | D165: HILL INTERNATIONAL INC | E165: 1 | F165: 53A0244 | G165: S2 ENGINEERING INC | H165: 2 | I165: 04A5786 07A4764
A166: BROWN & CALDWELL | B166: 1 | C166: 04A5950 | D166: HNTB CORPORATION | E166: 1 | F166: 07A4758 | G166: SAN DIEGO NATURAL HISTORY MUSEUM | H166: 1 | I166: 11A3009
A167: CHAUDHARY & ASSOCIATES | B167: 1 | C167: 04A5906 | D167: ICF JONES & STOKES | E167: 1 | F167: 08A3114 | G167: STANTEC | H167: 6 | I167: 07A4918 03A3066 03A3073 03A3072 12A1843 08A3186
A168: DOKKEN ENGINEERING | B168: 1 | C168: 03A3087 | D168: JACOBS PROJECT MANAGEMENT | E168: 1 | F168: 07A4783 | G168: STANTON CONSTRUCTABILITY SERVICES | H168: 1 | I168: 53A0241
A169: ECORP CONSULTING | B169: 1 | C169: 08A3125 | D169: KLEINFELDER CONSTRUCTION | E169: 2 | F169: 11A3056 11A3099 | G169: STATISTICAL RESEARCH INC | H169: 1 | I169: 08A3182
A170: EXP U.S. SERVICES INC | B170: 2 | C170: 08A3164 04A5910 | D170: MARK THOMAS & COMPANY | E170: 1 | F170: 03A3085 | G170: TRANSYSTEMS CORPORATION | H170: 1 | I170: 07A4765
A171: FOUNTAINHEAD CONSULTING | B171: 1 | C171: 07A4906 | D171: MNS ENGINEERS INC | E171: 1 | F171: 06A2588 | G171: TRC ENGINEERING INC | H171: 4 | I171: 04A5823 59A1095 06A2597 11A3027
A172: GEOCON CONSULTANTS | B172: 2 | C172: 09A0769 04A5953 | D172: NV5 INC | E172: 2 | F172: 06A2596 09A0788 | G172: WRECO | H172: 1 | I172: 04A5818
A174: To see names of prime contractors/contract numbers, place your cursor on comment tab (red triangle).
A175: Caltrans DBE Reports: http://www.dot.ca.gov/hq/bep/reports.htm
A176: *These reports are subject to change, reports are generated from information available at the time of reporting.
